Cogmind - Beta 15 @@@ ROGUE MODE // 2025.06.21 @ 17:54:40 Player: Skysub Result: Destroyed by S-10 Pest with Light Assault Rifle Performance ------------- Evolutions (0) 0 Regions Visited (2) 400 Robots Destroyed (30) 150 Value Destroyed (731) 731 Prototype IDs (0) 0 Alien Tech Used (0) 0 Bonus (0) 0 TOTAL SCORE: 1281 Bonus ------- None Cogmind --------- Core Integrity 0/250 Matter 290/300 Energy 85/100 System Corruption 0% Temperature Cool (0) Movement Rolling (120) Ox1 Location -10/Subcaves Parts ------- > --- POWER (1) -------- Subdweller Power Source > --- PROPULSION (2) --- Subdweller Monowheel > --- UTILITY (2) ------ Large Storage Unit Improved Terrain Scanner > --- WEAPON (2) ------- Subdweller Beam Cannon Hammer > --- INVENTORY (15) --- Subdweller Power Source Subdweller Power Source Subdweller Monowheel Subdweller Monowheel Subdweller Monowheel Subdweller Optics Subdweller Optics Subdweller Optics Scrap Shield Subdweller Beam Cannon Light Assault Rifle Light Assault Rifle Mining Laser Peak State ------------ > --- POWER ------------ Subdweller Power Source > --- PROPULSION ------- Light Treads Subdweller Monowheel > --- UTILITY ---------- Large Storage Unit Improved Terrain Scanner > --- WEAPON ----------- Medium Laser Hammer > --- INVENTORY -------- Subdweller Power Source Subdweller Monowheel Subdweller Monowheel Small Storage Unit Subdweller Optics Subdweller Optics Subdweller Optics Scrap Shield Subdweller Beam Cannon Subdweller Beam Cannon Light Assault Rifle Light Assault Rifle Mining Laser [Rating: 13] Favorites ----------- Power Ion Engine Engine Ion Engine Propulsion Light Treads Treads Light Treads Wheel Subdweller Monowheel Utility Large Storage Unit Device Improved Terrain Scanner Storage Large Storage Unit Weapon Light Assault Rifle Energy Gun Medium Laser Energy Cannon Subdweller Beam Cannon Ballistic Gun Light Assault Rifle Launcher Grenade Launcher Impact Weapon Hammer Build | -11 -10 -10 ------- Run | Yrd Mat Sub Slots Evolved . | . . . Power . | . . . Propulsion . | . . . Utility . | . . . Weapon . | . . . Parts Attached 17 | 7 2 8 Power 2 | 1 . 1 Engine 2 | 1 . 1 Core . | . . . Reactor . | . . . Propulsion 4 | 2 . 2 Treads 3 | 2 . 1 Leg . | . . . Wheel 1 | . . 1 Hover . | . . . Flight . | . . . Utility 4 | 2 2 . Device 2 | 1 1 . Storage 2 | 1 1 . Processor . | . . . Hackware . | . . . Protection . | . . . Artifact . | . . . Weapon 7 | 2 . 5 Energy Gun 1 | . . 1 Energy Cannon 1 | . . 1 Ballistic Gun 3 | 2 . 1 Ballistic Cannon . | . . . Launcher 1 | . . 1 Special Weapon . | . . . Impact Weapon 1 | . . 1 Slashing Weapon . | . . . Piercing Weapon . | . . . Special Melee Weapon . | . . . Unidentified Prototypes . | . . . Parts Lost 8 | . . 8 Power 1 | . . 1 Propulsion 3 | . . 3 Utility 1 | . . 1 Weapon 3 | . . 3 Highest Loss Streak 3 | . . 3 To Critical Strikes . | . . . Average Backups 8 | 2 7 12 Power 1 | . 1 1 Propulsion 1 | . 1 3 Utility 1 | . 1 3 Weapon 3 | . 3 4 Tool/Special . | . . . Unused Backups 13 | . . 13 Power 3 | . . 3 Propulsion 4 | . . 4 Utility 4 | . . 4 Weapon 2 | . . 2 Tool/Special . | . . . Average Slot Usage (%) 98 | . 100 96 Engine 13 | . 14 13 Treads 26 | . 28 23 Device 13 | . 14 13 Storage 14 | . 14 14 Energy Gun 2 | . . 7 Ballistic Gun 19 | . 28 5 Launcher 1 | . . 4 Impact Weapon 3 | . . 9 Peak Build Rating 13 | 9 9 13 Average Rating 9 | 5 8 10 On Entrance 5 | . 9 8 Naked Turns . | . . . Heaviest Build 36 | 14 29 36 Greatest Support 40 | 40 40 40 Greatest Overweight (x) 1 | . . 1 Average Overweight (x) . | . . . Largest Inventory Capacity 15 | 8 15 15 Average Capacity 12 | 7 11 15 Most Carried 15 | 4 10 15 Average Carried 9 | 2 7 13 Final Capacity 15 | 8 15 15 Final Carried 14 | 4 10 14 Class Distribution -------------------- 90% | Mutant 9% | Scavenger-Mutant Dominant Class ---------------- Mutant | -10/Materials Mutant | -10/Subcaves Resources | -11 -10 -10 ----------- Run | Yrd Mat Sub Matter Collected 632 | 280 206 146 Remotely . | . . . Salvage Created 972 | 53 517 402 Parts 69 | 8 37 24 Haulers Intercepted 1 | . 1 . Recyclers Shooed . | . . . Parts Field Recycled . | . . . Retrieved Matter . | . . . Parts Self-Destructed 3 | . . 3 Prevented . | . . . Kills | -11 -10 -10 ------- Run | Yrd Mat Sub Combat Hostiles Destroyed 25 | . 14 11 Melee 1 | . . 1 Guns 18 | . 14 4 AOE 5 | . . 5 Classes Destroyed 7 | 1 4 2 Builder 2 | . 2 . Tunneler 2 | 2 . . Hauler 1 | . 1 . Swarmer 9 | . 6 3 Grunt 8 | . 8 . Cobbler 1 | . . 1 Subdweller 8 | . . 8 Best Kill Streak 4 | 2 3 4 Combat Bots Only 4 | . 3 4 Max Kills in Single Turn 2 | 1 1 2 Gunslinging . | . . . Exploded 2 | . . 2 Melee 1 | . . 1 Uniques/NPCs Destroyed . | . . . Combat | -11 -10 -10 -------- Run | Yrd Mat Sub Hostile Shots Fired 141 | . 57 84 Missed 30 | . 13 17 Hits 111 | . 44 67 Projectile 111 | . 44 67 Critical Strikes 1 | . . 1 Damage Taken 1357 | . 434 923 Core 257 | . 72 185 Absorbed by Shields . | . . . Core Remaining (%) 100 | 100 . . Volleys Fired 74 | 4 45 25 Largest 2 | 2 2 2 Hottest 80 | 40 40 80 Shots Fired 139 | 8 90 41 Gun 130 | 8 90 32 Cannon 2 | . . 2 Launcher 7 | . . 7 Special . | . . . Kinetic 114 | 8 90 16 Thermal 18 | . . 18 Explosive 7 | . . 7 Electromagnetic . | . . . Robot Hit Streak 10 | 1 10 5 Robot Miss Streak 5 | 2 4 5 Penetration Max . | . . . Secondary Targets 1 | . 1 . Max Gunslinging Chain 1 | . 1 . Shots Hit Robots 93 | 3 56 34 Core Hits 47 | 2 28 17 Critical Kills 1 | . 1 . Critical Parts Destroyed 2 | . 1 1 Critical Strikes 4 | . 2 2 Burn 1 | . . 1 Destroy 2 | . 2 . Smash 1 | . . 1 Melee Attacks 21 | . . 21 Impact 21 | . . 21 Slashing . | . . . Piercing . | . . . Sneak Attacks . | . . . Combat Hostiles . | . . . Follow-up Attacks . | . . . Damage Inflicted 1389 | 33 598 758 Guns 821 | 33 597 191 Cannons . | . . . Explosions 340 | . . 340 Melee 227 | . . 227 Ramming 1 | . 1 . Kinetic 710 | 33 597 80 Thermal 111 | . . 111 Explosive 340 | . . 340 Electromagnetic . | . . . Impact 227 | . . 227 Slashing . | . . . Piercing . | . . . Highest Corruption . | . . . Average Corruption . | . . . Corruption Purged . | . . . Corruption Blocked . | . . . Overload Shots . | . . . Overflow Damage 26 | . . 26 Projectiles . | . . . Explosions . | . . . Melee 26 | . . 26 Knockbacks 2 | . . 2 Impact 2 | . . 2 Kinetic . | . . . Secondary . | . . . Self-Inflicted Damage 24 | . . 24 Shots 1 | . . 1 Rammed 1 | . 1 . Targets Rammed 1 | . 1 . Kicked . | . . . Crushed . | . . . Highest Temperature 9 | . 9 . Average Temperature 6 | . 6 . Received Heat Transfer 276 | . 120 156 Siege Activations . | . . . Martial Activations . | . . . Shielding Activations . | . . . Robots Disrupted . | . . . Combat Hostiles . | . . . Robots Corrupted 1 | . . 1 Combat Hostiles 1 | . . 1 Parts Fried 1 | . . 1 Impact Corruptions 1 | . . 1 Robots Melted . | . . . Combat Hostiles . | . . . Parts Melted . | . . . Heat Transferred 407 | . . 407 Parts Sabotaged . | . . . Parts Stolen . | . . . Parts Stripped . | . . . Power Chain Reactions . | . . . Alert | -11 -10 -10 ------- Run | Yrd Mat Sub Maximum Alert Level 1 | . 1 . Low Security (%) 90 | 100 89 . Level 1 9 | . 10 . Level 2 . | . . . Level 3 . | . . . Level 4 . | . . . Level 5 . | . . . High Security . | . . . Max Security . | . . . Peak Influence 224 | 5 224 . Initial . | . . . Average 110 | . 127 . Influence Increases 567 | 10 457 100 Destroy 0b10 Robot/C 340 | . 280 60 Destroy 0b10 Robot/NC 25 | 10 15 . Destroy Leader 82 | . 72 10 Select Force Hacks 60 | . 60 . Disable Machine 15 | . 15 . Lose Combat Pursuer 45 | . 15 30 Influence Decreases 545 | 10 281 254 Entered New Map 85 | . . 85 Time Decay 439 | 10 281 148 Lost Part 21 | . . 21 Squads Dispatched 4 | . 4 . Investigation 3 | . 3 . Extermination . | . . . Reinforcement 1 | . 1 . Assault . | . . . Garrison . | . . . Intercept . | . . . Searches Triggered . | . . . Construction Impeded . | . . . Haulers Reinforced . | . . . Active Scanning Responses . | . . . Cargo Convoy Interrupts . | . . . Stealth | -11 -10 -10 --------- Run | Yrd Mat Sub Distress Signals 3 | . 3 . Communications Jammed . | . . . Distress Signals . | . . . Times Spotted 37 | . 21 16 Peak Tracking Total 6 | . 4 6 Tactical Retreats 2 | . 1 1 Traps | -11 -10 -10 ------- Run | Yrd Mat Sub Traps Triggered 1 | . 1 . Indirectly . | . . . Trap Hack Attempts . | . . . Triggered . | . . . Disarmed . | . . . Reprogrammed . | . . . Reused . | . . . Traps Extracted . | . . . Installed . | . . . Triggered . | . . . Machines | -11 -10 -10 ---------- Run | Yrd Mat Sub Machines Disabled 1 | . 1 . Max in Single Turn 1 | . 1 . Machines Repaired . | . . . Machines Dismantled . | . . . Machines Sabotaged . | . . . Overloaded Fab Kills . | . . . Hacking | -11 -10 -10 --------- Run | Yrd Mat Sub Machines Accessed 2 | . 2 . Terminals . | . . . Fabricators . | . . . Repair Stations . | . . . Recycling Units 2 | . 2 . Scanalyzers . | . . . Garrison Access . | . . . Total Hacks 5 | . 5 . Successful 3 | . 3 . Failed 2 | . 2 . Catastrophic . | . . . Database Lockouts . | . . . Manual 2 | . 2 . Terminals . | . . . Fabricators . | . . . Repair Stations . | . . . Recycling Units 5 | . 5 . Scanalyzers . | . . . Garrison Access . | . . . Terminal Hacks . | . . . Fabricator Hacks . | . . . Repair Station Hacks . | . . . Recycling Unit Hacks 1 | . 1 . Report Inventory 1 | . 1 . Scanalyzer . | . . . Garrison Access Hacks . | . . . Unauthorized Hacks 2 | . 2 . Terminals . | . . . Fabricators . | . . . Repair Stations . | . . . Recycling Units 2 | . 2 . Tunnel 2 | . 2 . Scanalyzers . | . . . Garrison Access . | . . . Data Cores Recovered . | . . . Used . | . . . Hacking Detections 1 | . 1 . Full Trace Events . | . . . Feedback Events . | . . . Feedback Blocked . | . . . Robot Schematics Acquired . | . . . Robots Built . | . . . Authchips . | . . . Time . | . . . Total Robot Build Rating . | . . . Part Schematics Acquired . | . . . Parts Built . | . . . Authchips . | . . . Time . | . . . Total Part Build Rating . | . . . Parts Repaired . | . . . Time . | . . . Parts Recycled . | . . . Recycled Matter . | . . . Retrieved Matter . | . . . Retrieved Components . | . . . Parts Scanalyzed . | . . . Part Schematics Acquired . | . . . Parts Damaged . | . . . Bothacking | -11 -10 -10 ------------ Run | Yrd Mat Sub Used RIF Installer . | . . . Robots Hacked . | . . . Non-combat . | . . . Combat . | . . . Robot Hacks Applied . | . . . Relay Couplers Released . | . . . Fabnet Peak Effective % . | . . . Robots Rewired . | . . . Allies Hacked . | . . . Hacks Repelled . | . . . Allies | -11 -10 -10 -------- Run | Yrd Mat Sub Total Allies . | . . . Largest Group . | . . . Highest-Rated Group . | . . . Highest-Rated Ally . | . . . Total Orders . | . . . Ally Attacks . | . . . Total Damage . | . . . Kills . | . . . Allies Corrupted . | . . . Allies Melted . | . . . Intel | -11 -10 -10 ------- Run | Yrd Mat Sub Active Infowar (turns) 1237 | 35 739 463 Terrain 861 | 35 404 422 Structural 376 | . 335 41 Robot Analysis Total . | . . . Derelict Logs Recovered . | . . . Drone Launches . | . . . Drone Recoveries . | . . . Exploration | -11 -10 -10 ------------- Run | Yrd Mat Sub Turns Passed 1327 | 115 739 473 Spaces Moved 576 | 60 320 196 Core 5 | 5 . . Treads 541 | 55 320 166 Legs . | . . . Wheels 30 | . . 30 Hover . | . . . Flight . | . . . Fastest Speed 50 | 50 160 120 Average Speed 156 | 150 160 153 Slowest Speed 160 | 160 160 160 Overloaded Moves . | . . . Propulsion Burnouts . | . . . Robots Hopped . | . . . Potential Cave-ins . | . . . Cave-ins Triggered . | . . . Exploration Rate (%) 29 | 4 73 12 Regions Visited 2 Branch Regions 1 Pre-discovered Areas 3 | . 2 1 Known Exits Taken . | . . . Unknown Exits Taken 2 | 1 1 . Scrap Searched . | . . . Spaces Dug . | . . . Terrain Destroyed 33 | . . 33 Melee . | . . . Projectile . | . . . AOE 33 | . . 33 Terrain Rammed . | . . . Walls Destroyed . | . . . Machines Disabled . | . . . Actions | -11 -10 -10 --------- Run | Yrd Mat Sub Total 833 | 74 465 294 Wait 115 | . 92 23 Move 574 | 59 319 196 Hop . | . . . Pick Up 24 | 4 6 14 Fast Attach 7 | 7 . . Attach 7 | . . 7 Detach . | . . . Swap 6 | . 2 4 Drop 4 | . . 4 Fire 74 | 4 45 25 Melee 21 | . . 21 Ram . | . . . Kick . | . . . Crush 1 | . 1 . Escape Stasis . | . . . Rewire . | . . . Trap . | . . . Miscellaneous . | . . . Route ------- -11/Scrapyard -10/Materials (discovered 5 exits: [*Mat x3] / [*Min] / [*Sub]) -10/Subcaves History --------- Turn | Location | Event 8 | -11/Scrapyard | Discovered new exit (range 15) 116 | -11/Scrapyard | Entered Materials 307 | -10/Materials | Build established: Mutant 364 | -10/Materials | Discovered new exit (range 9) 494 | -10/Materials | Discovered new exit (range 16) 643 | -10/Materials | Discovered new exit (range 8) 746 | -10/Materials | Discovered new exit (range 14) 824 | -10/Materials | Discovered new exit (range 5) 855 | -10/Materials | Entered Subcaves 856 | -10/Subcaves | Approached by a straggling Scientist 1023 | -10/Subcaves | Core integrity fell below 50% 1024 | -10/Subcaves | Ambushed by Subdweller buried in earth 1115 | -10/Subcaves | Learned location of Zion (-6) 1115 | -10/Subcaves | Met a Zionite searching for "candidates" 1259 | -10/Subcaves | Core integrity fell below 20% 1296 | -10/Subcaves | Lost 3 parts (2n1w) 1328 | -10/Subcaves | Destroyed by S-10 Pest with Light Assault Rifle Last Messages --------------- 5H-CSM(R) knocked back. Lgt. Treads destroyed. NW-N3Q(R) knocked back. 5H-CSM(R) destroyed. Sub. Power Source shoots sparks and powers down. Lgt. Treads destroyed. CV-X6F(c): "I think it's somewhere southwest of here" Med. Laser destroyed. NW-N3Q(R) suffers critical hit (Smash). Destroyed Sub. Monowheel. NW-N3Q(R) system corrupted by crushing effect. NW-N3Q(R) system terminally corrupted. Sub. Power Source fried. Acquired Sub. Power Source. Dropped Sub. Monowheel. Acquired Sub. Monowheel. Dropped Sml. Storage Unit. Acquired Sub. Monowheel. Acquired 5 matter. CV-X6F(c): "I think it's somewhere southwest of here" Map ----- +----------------------------------------------------+ | ?????????????#???### % & # | | ???????????#????#??## &%& ## # | | ??????? ???????????### # ### | | ???????????????#??? ## %! ## #?## | | ?????? ???? ????#?? ### ### % ### #??## | | ???????????????????? ## #### ## #???## | | ????????????????????? ## ###### % ## #???#?# | | ????????????????????? ######?## "" ### " ###?#?? | | ????????????#? ????????####### % """"""#???? | | ???????????????????????#?## """ #???# | | ??????????????#??#????? ## "" "###??? | | ????????????????##?#?? # # ## #????? | | ?????????????????????? ### ## ##? #??#? | | ?????????????????????? #??##""" # #?? #???? | | ????????????????? ????? #????## " ###?##???? | | ???????????????????? ? #????## " #?? ????? | | ?????????????????? ???? ####?# " ###?? ???# | | ?????????"????????????## #?##" #????? ? | | ?????????" ????????#???# # #??## ####?#??? ??? | | ?????????" ????#????## #""#???## ##???????? ?? | | ??????????" ??? #???## "#""##??## ####???????? | | ???????????? ???????## "###?## ##???#??? | | ???????????? ? ????## """s #### # ###????? | | ???????#???????# ?#?# "" ""c## ###?#??#?? | | ????????????????# ### s" s& && #???#???#? | | ????????????????# "@ ##%%!# ######????????? | | ??????????????#?# """ ###""###??????????#??? | | ???????????????# "## s###"""#??????????????? | | ?????????????# "###" "###"##?#???#??#?????? | | ??????????#??### "??## """###?????????##????? | | ???????????????### "#???# ""##?#????#??????????? | | ?????????????????###?#??#######??????#???????????? | | ???????????????????????????????????????#??##?????? | | ???????????????????????#??????????????????#??????? | | ??????????????????????????#????#???##????????????? | | ???????????????#?????????????#???##??????????????? | | ?????????????????????????????????????????????????? | | ????????????????????????#??????????#?????????????? | | ?????????????????????????????????????????????????? | | ????????????????#????????????????????????????????? | | ?????????????????????????????????????????????????? | | ?????????????????????????????????????????????????? | | ?????????????????????????????????????????????????? | | ?????????????????????????????????????????????????? | | ?????????????????????????????????????????????????? | | ?????????????????????????????????????????????????? | | ?????????????????????????????????????????????????? | | ?????????????????????????????????????????????????? | | ?????????????????????????????????????????????????? | | ?????????????????????????????????????????????????? | +----------------------------------------------------+ Best States ------------- Heat Dissipation 25 Energy Generation 15 Energy Capacity 250 Matter Stores 300 Matter Capacity 300 Sight Range 16 Terrain Scan Range 16 Terrain Scan Density 10 Evasion (%) 40 Recoil Reduction 2 Item Schematics ----------------- None Robot Schematics ------------------ None Fabricated ------------ Nothing Repaired ---------- Nothing Alien Tech Used ----------------- None Achievements -------------- None Challenges ------------ None Game ------ Seed MyomerLightJetlance Manual? 0 Play Time 00:10:48 Cumulative 123.2 hours Start 2025.06.20 @ 17:24:26 End 2025.06.21 @ 17:54:40 Sessions 3 Manual Loads 0 Difficulty Rogue Special Mode None Game No. 129 Rogue 129 Adventurer 0 Explorer 0 Win Type - Total 2 Types 1/0/0/1/0/0/0/0/0/0 Lore% 60 Gallery% 56 Achievement% 51 Wizard Run 0 Options --------- Layout 1 ASCII 0 Keyboard 1 Movement Numpad Keybinds 0 Fullscreen 1 Font 32/SmallcapsGlow Map View 77x35 Zoom Use 0% Tactical HUD 0 Map Filters NONE Filters NONE Steam 1 RUN: 575fdd49-2850-4ea1-ba5f-de7bf48ae670